bitfinex/quotes_SOLUSD_20240622
["timestamp","ask_amount","ask_price","bid_price","bid_amount"]
[1719072300738,6.51,134.55,134.52,7.4337]
[1719072303265,27.4319,134.56,134.51,7.4342]
[1719072303452,6.51,134.54,134.51,7.4342]
[1719072305355,6.51,134.53,134.51,7.4342]
[1719072305553,6.51,134.52,134.46,15.7222]
[1719072305762,6.51,134.51,134.48,7.4356]
[1719072306065,22.6689,134.55,134.46,40.8244]
[1719072306267,6.51,134.52,134.5,7.4346]
[1719072308457,6.51,134.52,134.49,7.4352]
[1719072310458,6.51,134.51,134.49,7.4352]
[1719072311457,6.51,134.52,134.49,7.4352]
[1719072312759,6.51,134.5,134.43,39.955]
[1719072313057,6.51,134.47,134.44,7.438]
[1719072314059,6.51,134.45,134.43,7.4386]
[1719072315452,6.51,134.45,134.44,7.4382]
[1719072316252,7.45,134.48,134.44,7.4382]
[1719072316435,6.51,134.45,134.44,7.4382]
[1719072316840,6.51,134.45,134.43,7.4386]
[1719072317264,20.0,134.47,134.44,7.4382]
[1719072317563,6.51,134.45,134.44,7.4382]
[1719072317746,6.51,134.46,134.42,7.4388]
[1719072317954,6.51,134.44,134.42,7.4388]
[1719072318144,0.34,134.47,134.42,7.4388]
[1719072318462,6.51,134.45,134.42,7.4388]
[1719072318663,6.51,134.44,134.42,7.4388]
[1719072318864,6.51,134.45,134.42,7.4388]
[1719072319049,6.51,134.44,134.42,7.4388]
[1719072320545,6.51,134.44,134.41,7.4398]
[1719072320848,6.51,134.43,134.41,7.4398]
[1719072321662,6.51,134.43,134.38,25.1126]
[1719072321945,6.51,134.4,134.36,18.6067]
[1719072322160,6.51,134.4,134.37,7.4419]
[1719072322465,6.51,134.4,134.38,7.4414]
[1719072323966,6.51,134.39,134.34,18.6094]
[1719072324172,6.51,134.39,134.37,7.442]
[1719072328781,6.51,134.38,134.35,7.4426]
[1719072328985,6.51,134.37,134.32,25.1222]
[1719072329296,6.51,134.36,134.33,7.4442]
[1719072329495,6.51,134.36,134.34,7.4437]
[1719072329853,6.51,134.37,134.34,7.4437]
[1719072330058,6.51,134.37,134.33,7.4441]
[1719072330555,6.51,134.35,134.31,7.4452]
[1719072330760,6.51,134.34,134.3,7.4459]
[1719072331070,6.51,134.34,134.32,7.4447]
[1719072331395,6.51,134.34,134.33,7.4443]
[1719072331555,24.0481,134.38,134.3,6.51]
[1719072331556,6.51,134.35,134.3,6.51]
[1719072331892,7.4422,134.37,134.32,7.4447]
[1719072332186,6.51,134.35,134.31,7.4452]
[1719072332359,6.51,134.33,134.27,6.6382]
[1719072332564,6.51,134.33,134.28,6.51]
[1719072333384,6.51,134.33,134.3,7.4456]
[1719072334955,6.51,134.33,134.29,7.4463]
[1719072335158,6.51,134.33,134.3,7.446]
[1719072335359,6.51,134.33,134.29,7.4464]
[1719072336075,6.51,134.32,134.29,7.4464]
[1719072336263,6.51,134.32,134.3,7.4458]
[1719072342361,21.1283,134.35,134.3,7.4458]
[1719072342570,21.1283,134.35,134.26,34.1258]
[1719072342571,20.0,134.34,134.31,7.4454]
[1719072342779,6.51,134.33,134.3,7.4458]
[1719072347678,20.0,134.34,134.29,7.4463]
[1719072347883,6.51,134.33,134.29,7.4463]
[1719072348059,20.0,134.34,134.3,7.4458]
[1719072348475,6.51,134.33,134.3,7.4458]
[1719072350292,6.51,134.33,134.29,7.4463]
[1719072354476,6.51,134.33,134.27,6.51]
[1719072354674,6.51,134.32,134.28,7.4469]
[1719072354869,6.51,134.32,134.29,7.4464]
[1719072355397,6.51,134.32,134.28,7.4466]
[1719072355700,6.51,134.32,134.29,7.4465]
[1719072358390,6.51,134.32,134.27,13.9571]
[1719072358591,6.51,134.32,134.27,6.51]
[1719072358807,6.51,134.32,134.28,7.4468]
[1719072360600,6.51,134.31,134.27,7.4474]
[1719072361383,6.51,134.31,134.28,7.447]
[1719072361899,6.51,134.32,134.28,7.447]
[1719072362999,7.4454,134.31,134.26,7.4478]
[1719072363196,6.51,134.31,134.24,24.7104]
[1719072363387,6.51,134.32,134.27,7.4472]
[1719072363593,6.51,134.32,134.28,7.447]
[1719072365604,16.1993,134.33,134.29,7.4464]
[1719072365810,20.0,134.32,134.29,7.4464]
[1719072366603,26.51,134.32,134.29,7.4464]
[1719072368404,26.51,134.32,134.27,6.51]
[1719072368611,33.955,134.32,134.27,7.4472]
[1719072369390,33.955,134.32,134.26,6.51]
[1719072369590,6.51,134.31,134.26,13.958]
[1719072371013,6.51,134.3,134.26,7.448]
[1719072371218,6.51,134.3,134.24,6.0873]
[1719072371414,6.51,134.3,134.25,6.51]
[1719072371617,6.51,134.3,134.26,7.4481]
[1719072373994,6.51,134.3,134.27,7.4476]
[1719072374716,20.0,134.32,134.28,7.447]
[1719072375028,6.51,134.31,134.28,7.447]
[1719072375924,6.51,134.31,134.27,7.4474]
[1719072377309,6.51,134.3,134.27,7.4474]
[1719072377897,6.51,134.3,134.26,7.448]
[1719072378098,6.51,134.29,134.25,7.4484]
[1719072379333,13.9561,134.3,134.25,7.4484]
[1719072379494,6.51,134.3,134.25,7.4484]
[1719072381818,6.51,134.3,134.26,7.4481]
[1719072382202,6.5813,134.31,134.25,8.72858802]
[1719072382406,6.51,134.3,134.28,7.447]
[1719072383300,6.51,134.3,134.27,7.4474]
[1719072383718,6.4113,134.31,134.27,7.4474]
[1719072383919,6.51,134.3,134.27,7.4474]
[1719072385700,7.45,134.28,134.26,7.4482]
[1719072385904,13.96,134.28,134.25,7.4485]
[1719072386195,7.45,134.28,134.25,7.4485]
[1719072386614,7.45,134.28,134.26,7.448]
[1719072390516,6.51,134.29,134.26,7.448]
[1719072393631,6.51,134.29,134.25,7.4485]
[1719072394425,7.45,134.28,134.21,6.5349]
[1719072394628,7.45,134.28,134.25,7.4486]
[1719072395223,6.51,134.29,134.25,7.4486]
[1719072395829,7.45,134.28,134.25,7.4486]
[1719072399216,7.45,134.3,134.26,7.4482]
[1719072399548,7.45,134.28,134.26,7.4482]
[1719072400520,6.2413,134.31,134.25,6.51]
[1719072400743,20.0,134.3,134.27,7.4473]
[1719072402209,26.51,134.31,134.27,7.4473]
[1719072404634,20.0,134.31,134.27,6.51]
[1719072404925,6.51,134.31,134.27,7.4473]
[1719072405317,13.9556,134.31,134.26,7.4481]
[1719072405514,20.0,134.32,134.26,7.4481]
[1719072405515,26.51,134.32,134.28,7.447]
[1719072405818,26.51,134.32,134.26,6.51]
[1719072405819,33.955,134.32,134.27,7.4475]
[1719072406634,27.445,134.32,134.27,7.4475]
[1719072406844,33.955,134.32,134.27,7.4475]
[1719072407038,6.51,134.31,134.27,7.4475]
[1719072408319,20.0,134.32,134.28,7.447]
[1719072408530,26.51,134.32,134.28,7.447]
[1719072410543,26.51,134.32,134.29,7.4465]
[1719072411821,20.0,134.32,134.29,7.4465]
[1719072412031,26.51,134.32,134.29,7.4465]
[1719072412241,6.51,134.31,134.24,18.6221]
[1719072412441,7.4466,134.29,134.26,6.51]
[1719072412742,6.51,134.31,134.27,7.4476]
[1719072412945,6.51,134.31,134.28,7.447]
[1719072413563,26.51,134.32,134.28,7.447]
[1719072413929,26.51,134.32,134.29,7.4465]
[1719072414523,26.51,134.32,134.28,7.4468]
[1719072415851,33.955,134.32,134.27,7.4475]
[1719072416148,6.51,134.31,134.27,7.4475]
[1719072416747,6.51,134.31,134.28,7.4471]
[1719072417253,6.51,134.31,134.27,7.4474]
[1719072422934,20.0,134.32,134.28,7.447]
[1719072423130,26.51,134.32,134.28,7.447]
[1719072423754,33.9549,134.32,134.28,7.447]
[1719072423957,26.51,134.32,134.28,7.447]
[1719072427660,20.0,134.32,134.23,16.0401]
[1719072427844,13.96,134.28,134.25,7.4485]
[1719072430360,6.51,134.27,134.25,7.4485]
[1719072432419,15.9858,134.29,134.26,7.4482]
[1719072432659,13.96,134.28,134.26,7.4482]
[1719072432865,13.96,134.28,134.22,18.625]
[1719072433064,13.96,134.28,134.25,7.4482]
[1719072434244,13.96,134.28,134.23,6.51]
[1719072434445,15.9858,134.29,134.23,6.51]
[1719072434646,13.96,134.28,134.26,7.448]
[1719072434847,13.96,134.28,134.25,7.4486]
[1719072435048,6.51,134.27,134.25,7.4486]
[1719072437075,6.51,134.27,134.22,18.625]
[1719072437592,6.51,134.27,134.22,25.135]
[1719072438171,6.51,134.27,134.22,18.625]
[1719072438588,6.51,134.27,134.22,25.135]
[1719072438787,6.51,134.27,134.25,7.4486]
[1719072442412,7.45,134.28,134.25,7.4486]
[1719072442580,6.51,134.27,134.25,7.4486]
[1719072442902,13.96,134.28,134.25,7.4486]
[1719072443798,13.96,134.28,134.26,7.4482]
[1719072444399,15.9858,134.29,134.24,18.6231]
[1719072444699,15.9858,134.29,134.27,7.4472]
[1719072444879,15.9858,134.29,134.26,7.4479]
[1719072446205,35.306,134.32,134.28,7.447]
[1719072446410,6.51,134.31,134.25,6.51]
[1719072446712,20.0,134.3,134.27,7.4473]
[1719072453592,26.51,134.3,134.27,7.4473]
[1719072453794,6.51,134.29,134.26,7.448]
[1719072455009,6.51,134.29,134.27,7.4476]
[1719072458609,13.96,134.28,134.25,7.4484]
[1719072459013,20.0,134.3,134.26,7.4478]
[1719072459197,6.51,134.29,134.26,7.4478]
[1719072460224,6.51,134.29,134.27,7.4476]
[1719072460897,6.51,134.29,134.26,7.448]
[1719072462711,20.0,134.3,134.27,7.4476]
[1719072462909,20.0,134.29,134.27,7.4476]
[1719072463106,20.0,134.29,134.26,7.4479]
[1719072463901,22.751,134.32,134.27,7.4475]
[1719072464103,26.51,134.31,134.27,7.4475]
[1719072464505,15.306,134.32,134.27,6.51]
[1719072465121,15.306,134.32,134.29,7.4463]
[1719072476416,21.816,134.32,134.29,7.4463]
[1719072476929,21.816,134.32,134.28,7.447]
[1719072477225,6.51,134.31,134.28,7.447]
[1719072479801,13.9561,134.3,134.25,7.4483]
[1719072480004,6.51,134.29,134.25,7.4483]
[1719072480224,6.51,134.28,134.25,7.4483]
[1719072480401,6.51,134.28,134.26,7.4482]
[1719072481317,6.51,134.29,134.26,7.4482]
[1719072483530,6.51,134.29,134.27,7.4475]
[1719072486218,6.51,134.29,134.28,7.4471]
[1719072486428,26.51,134.3,134.27,7.4474]
[1719072487910,6.51,134.29,134.26,7.448]
[1719072489132,20.0,134.3,134.27,7.4476]
[1719072489337,6.51,134.29,134.27,7.4476]
[1719072490338,6.51,134.29,134.26,7.448]
[1719072491831,6.51,134.28,134.26,7.448]
[1719072492323,23.1246,134.28,134.26,7.448]
[1719072492511,30.5746,134.28,134.26,7.448]
[1719072494226,23.1246,134.28,134.26,7.448]
[1719072497823,23.1246,134.28,134.25,7.4485]
[1719072498346,23.1246,134.28,134.26,7.4481]
[1719072499450,23.1246,134.28,134.25,7.4485]
[1719072501448,36.6146,134.31,134.24,25.1332]
[1719072501635,6.51,134.3,134.27,7.4474]
[1719072501830,20.0,134.29,134.27,7.4474]
[1719072502439,20.0,134.3,134.27,7.4474]
[1719072505138,20.0,134.3,134.25,6.51]
[1719072505348,20.0,134.3,134.26,7.448]
[1719072507164,26.51,134.3,134.26,7.448]
[1719072509152,20.0,134.3,134.26,7.448]
[1719072509939,26.51,134.3,134.26,7.448]
[1719072510949,20.0,134.3,134.26,7.448]
[1719072511152,26.51,134.3,134.26,7.448]
[1719072512558,20.0,134.3,134.22,18.6259]
[1719072512766,6.51,134.29,134.23,6.51]
[1719072512944,6.51,134.28,134.23,6.51]
[1719072513763,6.51,134.28,134.24,7.4489]
[1719072515163,6.51,134.28,134.25,7.4487]
[1719072515668,6.51,134.29,134.25,7.4487]
[1719072523649,6.51,134.28,134.24,1.48720356]
[1719072523964,7.4471,134.28,134.23,13.9595]
[1719072524461,7.4471,134.28,134.24,7.4493]
[1719072524647,13.9566,134.29,134.24,7.4493]
[1719072525450,14.9112,134.28,134.23,7.4497]
[1719072525651,21.4212,134.28,134.23,7.4497]
[1719072525879,13.974,134.28,134.24,7.4493]
[1719072526567,6.51,134.27,134.24,7.4493]
[1719072527067,13.974,134.28,134.24,7.4493]
[1719072527974,16.1292,134.27,134.23,7.4498]
[1719072528180,6.51,134.25,134.22,7.4504]
[1719072529673,6.51,134.25,134.21,7.4508]
[1719072530046,6.51,134.24,134.21,7.4508]
[1719072534975,7.4483,134.26,134.21,7.4508]
[1719072535266,6.51,134.24,134.21,7.4508]
[1719072535472,6.51,134.24,134.22,7.4504]
[1719072535883,6.51,134.24,134.18,18.6314]
[1719072536076,6.51,134.23,134.18,18.6314]
[1719072536270,6.51,134.22,134.17,28.7273]
[1719072536471,7.7889,134.25,134.2,7.4515]
[1719072536675,6.51,134.23,134.2,7.4515]
[1719072537187,7.7889,134.25,134.2,7.4515]
[1719072537379,6.51,134.23,134.2,7.4515]
[1719072537779,6.51,134.23,134.19,7.4519]
[1719072537976,27.4493,134.24,134.19,7.4519]
[1719072538181,6.51,134.22,134.19,7.4519]
[1719072539583,27.4493,134.24,134.19,7.4519]
[1719072539790,6.51,134.23,134.2,7.4515]
[1719072541794,6.51,134.22,134.2,7.4515]
[1719072542191,6.51,134.22,134.19,7.4519]
[1719072543895,6.51,134.23,134.19,7.4519]
[1719072544090,20.0,134.24,134.2,7.4515]
[1719072544297,6.51,134.23,134.2,7.4515]
[1719072545192,20.0,134.24,134.21,7.4509]
[1719072545374,26.51,134.25,134.21,7.4509]
[1719072546095,20.0,134.25,134.21,6.51]
[1719072546299,20.0,134.26,134.23,7.4497]
[1719072546590,26.51,134.26,134.23,7.4497]
[1719072546797,26.51,134.26,134.22,7.4502]
[1719072546971,26.51,134.26,134.21,6.51]
[1719072546972,33.9582,134.26,134.21,13.9607]
[1719072547178,33.9582,134.26,134.19,34.3457]
[1719072547179,6.51,134.24,134.2,7.4513]
[1719072548500,6.51,134.24,134.21,7.4509]
[1719072551279,27.4484,134.26,134.21,7.4509]
[1719072551497,6.51,134.24,134.21,7.4509]
[1719072553202,6.51,134.25,134.21,7.4509]
[1719072556901,27.4484,134.26,134.21,7.4509]
[1719072557109,6.51,134.25,134.21,7.4509]
[1719072557780,27.4483,134.26,134.21,7.4505]
[1719072557997,20.0,134.26,134.22,7.4503]
[1719072558201,26.51,134.26,134.22,7.4503]
[1719072559106,26.51,134.26,134.21,7.4508]
[1719072559107,33.9583,134.26,134.21,7.4508]
[1719072561003,33.9583,134.26,134.22,7.4504]
[1719072561211,26.51,134.26,134.22,7.4504]
[1719072561397,20.0,134.26,134.22,7.4504]
[1719072561602,26.51,134.26,134.22,7.4504]
[1719072568422,6.51,134.24,134.21,7.4507]
[1719072568921,6.51,134.24,134.22,7.4504]
[1719072570400,6.51,134.24,134.21,7.4509]
[1719072570819,6.51,134.23,134.21,7.4509]
[1719072573111,6.51,134.23,134.2,7.4514]
[1719072573513,6.51,134.23,134.21,7.4509]
[1719072574002,6.51,134.23,134.21,7.42993465]
[1719072576607,6.51,134.23,134.2,7.4513]
[1719072580029,7.4488,134.25,134.2,7.4513]
[1719072580212,20.17,134.24,134.2,7.4513]
[1719072582940,15.9874,134.23,134.19,7.4519]
[1719072583319,15.9874,134.23,134.2,7.4512]
[1719072588535,15.9874,134.23,134.19,7.4518]
[1719072591038,15.9874,134.23,134.19,6.51]
[1719072591221,20.0,134.24,134.22,7.4503]
[1719072591415,26.51,134.26,134.22,7.4503]
[1719072592741,26.51,134.26,134.21,6.51]
[1719072592742,33.9583,134.26,134.21,7.4508]
[1719072593617,6.51,134.25,134.21,7.4508]
[1719072595833,6.51,134.25,134.22,7.4504]
[1719072599643,6.51,134.25,134.23,7.4498]
[1719072599824,6.51,134.26,134.23,7.4498]
[1719072600025,28.9106,134.27,134.23,7.4498]
[1719072600242,22.4006,134.27,134.24,7.4492]
[1719072600442,28.9106,134.27,134.24,7.4492]
[1719072601326,28.9106,134.27,134.23,7.4496]
[1719072602334,6.51,134.26,134.22,7.4503]
[1719072602927,6.51,134.26,134.23,7.4498]
[1719072603844,6.51,134.26,134.22,7.4502]
[1719072604036,6.51,134.25,134.22,7.4502]
[1719072604947,22.4006,134.27,134.24,7.4493]
[1719072605441,36.3584,134.27,134.22,7.4504]
[1719072605642,6.51,134.25,134.21,7.4507]
[1719072606345,22.4006,134.27,134.18,18.6315]
[1719072606346,6.51,134.24,134.22,7.4504]
[1719072606948,6.51,134.25,134.23,7.4498]
[1719072609649,6.51,134.26,134.23,7.4498]
[1719072610836,22.4006,134.27,134.24,7.4492]
[1719072611036,28.9106,134.27,134.24,7.4492]
[1719072613470,28.9106,134.27,134.23,7.4496]
[1719072614537,28.9106,134.27,134.24,7.4492]
[1719072617566,22.4974,134.27,134.24,7.4492]
[1719072617763,7.464,134.28,134.24,7.4492]
[1719072617959,7.464,134.28,134.22,18.6261]
[1719072618163,7.464,134.29,134.26,7.4478]
[1719072618335,10.68852346,134.29,134.26,7.4478]
[1719072618964,7.464,134.29,134.26,7.4478]
[1719072619144,10.68852346,134.29,134.26,7.4478]
[1719072620084,10.68840885,134.29,134.26,7.4478]
[1719072620366,10.68840885,134.29,134.25,7.4485]
[1719072621461,18.13490885,134.29,134.24,13.9589]
[1719072621872,24.64490885,134.29,134.24,13.9589]
[1719072622053,17.19840885,134.29,134.24,13.9589]
[1719072623263,17.19838164,134.29,134.24,13.9589]
[1719072623461,6.51,134.28,134.24,7.4489]
[1719072624164,6.51,134.27,134.23,7.4498]
[1719072624645,7.4477,134.27,134.22,7.4503]
[1719072624840,6.51,134.25,134.22,7.4503]
[1719072625045,6.51,134.25,134.22,7.4504]
[1719072626664,6.51,134.24,134.21,7.4508]
[1719072626967,6.51,134.23,134.2,7.4513]
[1719072627740,6.51,134.23,134.21,7.4509]
[1719072627946,6.51,134.24,134.21,7.4509]
[1719072632789,6.51,134.22,134.2,7.4513]
[1719072634045,6.51,134.23,134.21,7.4509]
[1719072635657,6.51,134.23,134.2,7.4513]
[1719072637284,6.51,134.22,134.2,7.4513]
[1719072640895,6.51,134.23,134.2,7.4513]
[1719072642189,6.51,134.23,134.19,7.4519]
[1719072642498,6.51,134.23,134.17,25.1429]
[1719072642499,6.51,134.22,134.2,7.4515]
[1719072642678,6.51,134.23,134.2,7.4515]
[1719072644389,6.51,134.23,134.19,7.4519]
[1719072644685,7.4494,134.24,134.19,7.4519]
[1719072644899,6.51,134.22,134.2,7.4515]
[1719072645086,6.68,134.23,134.2,7.4515]
[1719072645400,6.68,134.23,134.19,7.4519]
[1719072645693,0.17,134.23,134.19,7.4519]
[1719072645900,6.85,134.23,134.19,7.4519]
[1719072646787,6.51,134.23,134.2,7.4512]
[1719072646973,6.51,134.24,134.2,7.4512]
[1719072649099,6.51,134.24,134.19,7.4519]
[1719072649100,13.9594,134.24,134.19,7.4519]
[1719072652306,7.4494,134.24,134.19,7.4519]
[1719072652509,6.51,134.23,134.19,7.4519]
[1719072655182,6.51,134.22,134.19,7.4519]
[1719072655603,7.4494,134.24,134.19,7.4519]
[1719072658121,0.34,134.25,134.17,25.1429]
[1719072658285,20.34,134.25,134.17,25.1429]
[1719072659215,7.4493,134.24,134.19,7.4517]
[1719072661119,6.51,134.22,134.19,7.4517]
[1719072661942,7.4493,134.24,134.2,7.4515]
[1719072662122,6.51,134.23,134.2,7.4515]
[1719072662635,6.51,134.22,134.2,7.4515]
[1719072663642,6.51,134.22,134.19,7.4518]
[1719072664745,6.51,134.22,134.2,7.4515]
[1719072665713,20.0,134.25,134.23,7.4494]
[1719072665917,26.51,134.25,134.23,7.4494]
[1719072667344,20.0,134.25,134.23,7.4494]
[1719072667519,26.51,134.25,134.23,7.4494]
[1719072669030,20.0,134.25,134.23,7.4494]
[1719072669215,14.9114,134.28,134.24,7.4491]
[1719072669216,7.464,134.28,134.24,7.4491]
[1719072669417,0.17,134.27,134.24,7.4491]
[1719072669618,6.68,134.27,134.22,6.51]
[1719072669816,6.68,134.27,134.21,25.1374]
[1719072670219,6.68,134.27,134.23,7.4495]
[1719072670421,0.17,134.27,134.23,7.4495]
[1719072670711,6.68,134.27,134.24,7.4493]
[1719072671035,7.464,134.28,134.24,7.4493]
[1719072671237,7.464,134.3,134.26,7.4478]
[1719072671541,13.974,134.29,134.25,7.4486]
[1719072672836,23.3119,134.32,134.23,18.6243]
[1719072673016,6.51,134.3,134.25,6.51]
[1719072673215,6.51,134.31,134.27,7.4472]
[1719072673417,23.3119,134.32,134.27,7.4472]
[1719072673630,6.51,134.31,134.27,7.4472]
[1719072674218,15.8666,134.32,134.28,7.447]
[1719072674413,7.4445,134.33,134.28,7.447]
[1719072674619,26.51,134.32,134.28,7.447]
[1719072675915,33.7376,134.36,134.29,7.4465]
[1719072675916,14.9078,134.34,134.29,7.4465]
[1719072676112,6.51,134.33,134.29,7.4465]
[1719072676931,14.9078,134.34,134.29,7.4465]
[1719072677127,6.51,134.33,134.29,7.4465]
[1719072677932,6.51,134.34,134.3,7.4459]
[1719072679430,7.4433,134.35,134.3,7.4459]
[1719072679634,6.51,134.33,134.29,7.4464]
[1719072681240,13.9544,134.33,134.28,7.447]
[1719072681415,6.51,134.32,134.28,7.447]
[1719072681616,6.51,134.31,134.28,7.447]
[1719072682036,7.464,134.33,134.29,7.446]
[1719072682244,6.51,134.32,134.29,7.446]
[1719072683024,7.464,134.33,134.29,7.446]
[1719072683236,6.51,134.32,134.29,7.446]
[1719072684055,6.51,134.31,134.29,7.446]
[1719072685549,6.51,134.32,134.3,7.4459]
[1719072689954,6.51,134.32,134.29,7.4463]
[1719072690148,6.51,134.3,134.25,23.159]
[1719072690351,6.51,134.29,134.28,7.447]
[1719072691329,6.51,134.29,134.27,7.4475]
[1719072701766,6.51,134.29,134.28,7.4471]
[1719072709446,6.51,134.29,134.27,7.4474]
[1719072709741,6.51,134.28,134.26,7.4481]
[1719072711454,6.51,134.28,134.27,7.4476]
[1719072711857,16.7361,134.31,134.27,7.4476]
[1719072712056,6.51,134.28,134.27,7.4476]
[1719072715790,16.7361,134.31,134.27,7.4476]
[1719072716298,6.51,134.28,134.27,7.4476]
[1719072717289,16.7361,134.31,134.27,7.4476]
[1719072717583,6.51,134.29,134.28,7.4471]
[1719072717777,6.85,134.29,134.28,7.4471]
[1719072718368,6.85,134.29,134.27,7.4474]
[1719072723387,6.51,134.32,134.27,6.51]
[1719072723775,6.51,134.32,134.31,7.4454]
[1719072723977,6.51,134.33,134.3,7.4459]
[1719072724177,30.9367,134.35,134.3,7.4459]
[1719072724178,6.51,134.32,134.3,7.4459]
[1719072724558,30.9367,134.35,134.3,7.4459]
[1719072724880,6.51,134.32,134.3,7.4459]
[1719072726481,6.51,134.32,134.29,7.4463]
[1719072737391,0.17,134.33,134.26,16.3012]
[1719072737572,6.51,134.29,134.26,7.4477]
[1719072741268,6.51,134.29,134.23,16.4259]
[1719072741269,6.51,134.27,134.23,7.4494]
[1719072741486,6.51,134.26,134.23,7.4494]
[1719072744910,6.51,134.26,134.22,7.4502]
[1719072745116,6.85,134.25,134.22,7.4502]
[1719072745316,6.51,134.25,134.23,7.4494]
[1719072747088,6.68,134.26,134.23,7.4494]
[1719072747587,7.4465,134.29,134.24,7.4491]
[1719072747790,6.51,134.26,134.24,7.4491]
[1719072748204,6.51,134.26,134.23,7.4496]
[1719072748794,34.9113,134.28,134.23,7.4496]
[1719072748993,6.51,134.26,134.23,7.4496]
[1719072749818,6.85,134.27,134.24,7.4493]
[1719072750298,6.85,134.27,134.23,7.4496]
[1719072751695,6.85,134.27,134.22,6.51]
[1719072751696,6.51,134.26,134.22,7.4503]
[1719072751893,6.85,134.27,134.23,7.4498]
[1719072753094,6.51,134.26,134.22,7.4502]
[1719072754592,27.464,134.28,134.22,6.51]
[1719072754803,6.51,134.27,134.24,7.4491]
[1719072755102,6.51,134.27,134.23,7.4496]
[1719072756105,6.51,134.27,134.24,7.4491]
[1719072761918,6.51,134.27,134.22,7.45]
[1719072762126,6.51,134.26,134.22,7.45]
[1719072762793,6.51,134.26,134.21,6.51]
[1719072762794,6.51,134.27,134.23,7.4498]
[1719072765119,6.51,134.26,134.23,7.4498]
[1719072769907,6.51,134.25,134.22,7.4503]
[1719072774621,6.68,134.24,134.21,7.4509]
[1719072775621,6.68,134.24,134.22,7.4504]
[1719072775823,0.17,134.24,134.22,7.4504]
[1719072776032,16.403,134.25,134.22,7.4504]
[1719072776203,7.464,134.27,134.24,7.4493]
[1719072776406,20.0,134.26,134.23,7.4496]
[1719072776819,20.0,134.26,134.22,7.4504]
[1719072777036,26.51,134.26,134.22,7.4504]
[1719072783729,20.0,134.26,134.22,7.4504]
[1719072783930,26.51,134.26,134.22,7.4504]
[1719072784632,0.17,134.25,134.21,13.9609]
[1719072784815,6.68,134.25,134.21,7.4509]
[1719072786637,0.17,134.25,134.22,7.4502]
[1719072787531,20.0,134.26,134.22,7.4502]
[1719072788041,26.51,134.26,134.22,7.4502]
[1719072788418,26.51,134.26,134.21,7.4508]
[1719072788419,33.9582,134.26,134.21,7.4508]
[1719072788638,33.9582,134.26,134.21,13.9608]